bitfinex/quotes_ETHUSD_20250217
["timestamp","ask_amount","ask_price","bid_price","bid_amount"]
[1739763634156,6.1616,2672.0,2671.5,3.35232284]
[1739763634488,0.266,2672.0,2671.9,1.61147713]
[1739763634654,0.266,2672.0,2671.9,3.74265]
[1739763638670,0.266,2672.1,2672.0,3.74251]
[1739763642394,0.816,2672.3,2672.1,3.74233]
[1739763642859,0.816,2672.3,2672.2,3.74223]
[1739763643399,1.22995515,2672.3,2672.2,3.74223]
[1739763643701,0.41395515,2672.3,2672.2,3.74223]
[1739763643910,0.67995515,2672.3,2672.2,3.74223]
[1739763646567,0.41395515,2672.3,2672.2,3.74223]
[1739763659926,0.816,2672.5,2672.4,3.74195]
[1739763662003,0.266,2672.5,2672.4,3.74195]
[1739763662722,5.34,2672.7,2672.3,1.61147713]
[1739763663014,5.34,2672.7,2672.6,3.74167]
[1739763663212,6.156,2672.7,2672.6,3.74167]
[1739763663629,5.34,2673.0,2672.7,3.74153]
[1739763663809,0.266,2672.9,2672.5,5.35316713]
[1739763664010,0.55,2672.8,2672.6,3.7416]
[1739763664210,0.55,2672.8,2672.7,3.74153]
[1739763665514,0.55,2672.8,2672.6,3.74165]
[1739763665754,0.55,2672.8,2672.7,3.74153]
[1739763665915,0.816,2672.8,2672.7,3.74153]
[1739763667816,0.55,2672.8,2672.7,3.74153]
[1739763668015,0.816,2672.8,2672.7,3.74153]
[1739763668354,0.266,2672.8,2672.7,3.74153]
[1739763668542,5.34,2673.2,2673.0,3.74111]
[1739763668747,0.816,2673.1,2673.0,3.74111]
[1739763669132,0.55,2673.0,2672.9,3.74122]
[1739763669855,0.55,2673.0,2672.8,3.74138]
[1739763670518,0.55,2673.0,2672.9,3.74125]
[1739763670719,0.266,2673.1,2672.9,3.74125]
[1739763671158,0.55,2673.0,2672.9,3.74125]
[1739763672157,5.34,2673.2,2672.9,3.74125]
[1739763672329,5.34,2673.2,2673.0,3.74111]
[1739763672535,0.266,2673.1,2673.0,3.74111]
[1739763672855,0.816,2673.1,2673.0,3.74111]
[1739763673231,1.23097408,2673.1,2673.0,3.74111]
[1739763675461,0.68097408,2673.1,2673.0,4.489346]
[1739763675865,0.41497408,2673.1,2673.0,4.489346]
[1739763676067,0.68097408,2673.1,2673.0,4.489346]
[1739763680781,0.68097408,2673.1,2673.0,5.294046]
[1739763685792,0.41497408,2673.1,2673.0,5.294046]
[1739763685992,0.266,2673.3,2673.0,1.552936]
[1739763686199,0.266,2673.3,2673.2,3.74083]
[1739763686200,0.816,2673.3,2673.2,3.74083]
[1739763688197,1.23130876,2673.3,2673.2,3.74083]
[1739763699310,0.68130876,2673.3,2673.2,3.74083]
[1739763701482,0.41530876,2673.3,2673.2,3.74083]
[1739763702017,0.8196,2674.0,2673.8,3.73994]
[1739763702214,0.266,2673.9,2673.8,3.73994]
[1739763702374,0.55,2673.8,2673.6,3.74023]
[1739763703016,0.55,2673.8,2673.5,3.74028]
[1739763703224,0.68175977,2673.7,2673.5,7.48061]
[1739763703459,0.68175977,2673.7,2673.6,3.74027]
[1739763709407,0.68175977,2673.7,2673.6,4.51897]
[1739763709608,0.68175977,2673.7,2673.6,5.344895]
[1739763714429,0.41575977,2673.7,2673.6,5.344895]
[1739763714593,0.266,2673.9,2673.6,1.604625]
[1739763714795,0.266,2673.9,2673.8,3.73999]
[1739763717096,0.266,2674.0,2673.8,3.73999]
[1739763717293,0.266,2674.0,2673.9,3.73985]
[1739763717726,0.266,2674.0,2673.9,3.48985]
[1739763718219,0.68213068,2674.0,2673.9,3.48985]
[1739763718409,0.68213068,2674.0,2673.7,3.74011]
[1739763718615,0.776,2673.9,2673.7,3.74011]
[1739763718820,0.41624702,2673.8,2673.7,3.74011]
[1739763719631,0.96624702,2673.8,2673.7,3.74011]
[1739763719794,0.96624702,2673.8,2673.6,3.74027]
[1739763720425,0.96624702,2673.8,2673.7,3.74013]
[1739763721225,0.96624702,2673.8,2673.4,0.7748]
[1739763721429,0.96624702,2673.8,2673.6,3.74024]
[1739763721912,0.96624702,2673.8,2673.5,3.74032]
[1739763722694,0.96624702,2673.8,2673.6,3.74023]
[1739763723027,0.96624702,2673.8,2673.7,3.74013]
[1739763723728,0.96624702,2673.8,2673.6,3.74023]
[1739763725193,0.96624702,2673.8,2673.6,3.7402]
[1739763725399,1.54104372,2673.8,2673.6,3.7402]
[1739763725601,0.96624702,2673.8,2673.6,3.7402]
[1739763728235,0.96624702,2673.8,2673.5,3.74041]
[1739763729543,0.96624702,2673.8,2673.3,3.74058]
[1739763729717,0.96624702,2673.8,2673.4,3.74048]
[1739763730637,0.96624702,2673.8,2673.5,3.74038]
[1739763732432,0.96624702,2673.8,2673.3,3.74065]
[1739763732732,0.55,2673.6,2673.2,3.74077]
[1739763732932,0.7816,2673.5,2673.1,3.74089]
[1739763733132,1.19807969,2673.5,2673.1,3.74089]
[1739763733333,0.55,2673.4,2673.1,3.74089]
[1739763733735,0.55,2673.4,2672.9,3.74115]
[1739763733938,0.41647969,2673.3,2672.8,2.37217713]
[1739763734105,0.266,2673.2,2673.1,3.74093]
[1739763734608,0.68247969,2673.2,2673.1,3.74093]
[1739763735344,0.68247969,2673.2,2673.0,3.74098]
[1739763736549,0.68247969,2673.2,2673.1,3.74097]
[1739763736860,0.68247969,2673.2,2672.9,3.74125]
[1739763737005,0.68247969,2673.2,2673.0,3.7411]
[1739763739956,0.41647969,2673.2,2673.1,4.50167]
[1739763740234,0.266,2673.2,2673.1,5.48709371]
[1739763740439,0.68212342,2673.2,2673.1,5.48709371]
[1739763742333,0.68212342,2673.2,2673.1,4.50167]
[1739763742519,0.68212342,2673.2,2673.1,3.74097]
[1739763742920,0.68212342,2673.2,2673.0,3.74111]
[1739763743105,0.68212342,2673.2,2672.8,3.74132]
[1739763743106,0.7816,2673.1,2672.8,3.74132]
[1739763743440,0.41617432,2673.0,2672.8,3.74132]
[1739763743648,0.41617432,2673.0,2672.7,3.74143]
[1739763744364,0.55,2672.9,2672.7,3.74143]
[1739763744644,0.41589796,2672.8,2672.5,3.74172]
[1739763744827,0.41589796,2672.8,2672.7,3.74153]
[1739763748016,0.41589796,2672.8,2672.6,3.74165]
[1739763748209,0.41589796,2672.8,2672.6,3.74159]
[1739763748448,0.41589796,2672.8,2672.6,7.48319]
[1739763749325,0.96589796,2672.8,2672.7,3.74153]
[1739763750947,0.41589796,2672.8,2672.7,3.74153]
[1739763751148,0.41589796,2672.8,2672.7,5.320942]
[1739763751326,0.55,2673.0,2672.9,3.74119]
[1739763752111,0.266,2673.0,2672.9,3.74114]
[1739763752527,0.266,2673.0,2672.7,0.8311]
[1739763752727,0.266,2673.0,2672.8,3.74138]
[1739763753251,0.266,2673.0,2672.9,3.74125]
[1739763754352,0.266,2673.0,2672.8,3.74138]
[1739763754554,0.266,2673.0,2672.8,3.74132]
[1739763755344,0.266,2673.0,2672.9,3.74125]
[1739763756063,0.266,2673.0,2672.8,3.74131]
[1739763756231,0.266,2673.0,2672.9,3.74125]
[1739763756534,0.266,2673.0,2672.8,3.74138]
[1739763757840,0.266,2673.0,2672.7,0.8311]
[1739763758039,0.55,2672.9,2672.6,3.74156]
[1739763758868,0.55,2672.9,2672.7,3.74151]
[1739763760369,0.55,2672.9,2672.5,4.57283]
[1739763760570,0.55,2672.9,2672.5,3.74173]
[1739763760966,0.55,2672.9,2672.4,3.74194]
[1739763762094,0.55,2672.7,2672.1,4.49418]
[1739763762374,0.55,2672.7,2672.2,3.74223]
[1739763763239,0.41530878,2672.6,2672.2,3.74223]
[1739763765347,0.41530878,2672.6,2672.1,4.49418]
[1739763765581,0.41530878,2672.6,2672.2,3.74223]
[1739763765790,0.41530878,2672.6,2672.1,4.49418]
[1739763766084,0.41530878,2672.6,2672.3,3.74207]
[1739763766680,0.55,2672.5,2672.3,3.74207]
[1739763766878,1.3148,2672.5,2672.2,3.74221]
[1739763767048,0.41530878,2672.4,2672.1,3.74227]
[1739763767450,0.41530878,2672.4,2672.2,3.74223]
[1739763768185,0.41530878,2672.4,2671.9,6.10591713]
[1739763768387,0.41530878,2672.4,2672.0,3.74251]
[1739763768681,0.41530878,2672.4,2671.9,3.74264]
[1739763769058,0.55,2672.1,2671.8,3.74275]
[1739763769267,0.41506867,2672.0,2671.8,3.74275]
[1739763770085,0.41506867,2672.0,2671.7,0.7519]
[1739763770293,0.41506867,2672.0,2671.9,3.74265]
[1739763772069,0.266,2672.2,2672.0,3.74238]
[1739763772251,0.41474844,2672.1,2672.0,3.74238]
[1739763772669,0.266,2672.1,2672.0,4.49428]
[1739763772875,0.68030457,2672.1,2672.0,4.49428]
[1739763773117,0.41430457,2672.1,2672.0,5.317973]
[1739763773466,5.34,2672.3,2672.2,3.74223]
[1739763773771,0.55,2672.2,2671.9,3.74255]
[1739763773980,0.55,2672.2,2672.0,3.7425]
[1739763774189,0.41434824,2672.1,2672.0,3.7425]
[1739763775297,0.55,2672.3,2672.1,3.74229]
[1739763775451,0.41434824,2672.2,2671.8,0.7519]
[1739763775656,0.41434824,2672.2,2671.9,0.449479]
[1739763775960,0.41434824,2672.2,2672.1,3.74237]
[1739763776904,5.34,2672.4,2672.3,3.74209]
[1739763777304,5.75439919,2672.4,2672.3,3.74209]
[1739763778497,6.51149919,2672.4,2671.7,0.7557]
[1739763778678,6.51149919,2672.4,2672.1,3.7423]
[1739763779408,6.51149919,2672.4,2672.2,3.74221]
[1739763779617,1.17149919,2672.4,2672.2,3.74221]
[1739763780018,1.17149919,2672.4,2671.9,3.74254]
[1739763780223,0.55,2672.3,2671.8,3.74271]
[1739763780516,0.41446469,2672.2,2671.9,3.74255]
[1739763781298,0.41446469,2672.2,2671.8,7.48542]
[1739763781484,0.41446469,2672.2,2671.8,3.74271]
[1739763781888,0.7571,2672.1,2671.6,3.74296]
[1739763782094,0.41435552,2672.0,2671.7,3.74293]
[1739763782722,0.41435552,2672.0,2671.6,3.74296]
[1739763782951,0.41435552,2672.0,2671.6,7.48595]
[1739763783087,0.55,2671.9,2671.6,3.74296]
[1739763783286,0.55,2671.7,2671.5,9.07318]
[1739763783486,1.3071,2671.7,2671.5,9.07318]
[1739763783723,0.41437007,2671.6,2671.5,9.07318]
[1739763784332,1.3071,2671.7,2671.5,5.33]
[1739763784625,0.266,2672.7,2671.7,0.7557]
[1739763784803,0.266,2672.7,2672.1,3.74237]
[1739763784986,6.0971,2672.8,2672.3,3.74197]
[1739763785186,6.0971,2672.8,2672.0,0.7557]
[1739763785187,0.55,2672.6,2672.2,3.7421]
[1739763785384,1.615458,2672.6,2672.2,3.7421]
[1739763785586,1.065458,2672.6,2672.4,3.74185]
[1739763785822,0.266,2672.9,2672.7,3.74145]
[1739763786031,0.7571,2673.0,2672.7,3.74152]
[1739763786205,0.267,2672.9,2672.6,3.74167]
[1739763786937,0.267,2672.9,2672.4,4.49754]
[1739763787174,0.55,2672.8,2672.4,0.7557]
[1739763787303,0.55,2672.6,2671.9,4.49828]
[1739763787638,0.55,2672.4,2672.0,3.74248]
[1739763787838,0.55,2672.5,2672.0,3.74248]
[1739763788024,1.054881,2672.5,2672.0,3.74248]
[1739763788221,4.796821,2672.5,2671.9,3.74257]
[1739763788403,0.55,2672.3,2671.9,7.48511]
[1739763788603,0.55,2672.3,2671.9,3.74254]
[1739763789702,0.55,2672.3,2672.0,3.74246]
[1739763790314,0.55,2672.3,2671.9,3.74254]
[1739763793337,0.39950751,2672.2,2671.9,3.74254]
[1739763793537,0.267,2672.1,2671.9,3.74254]
[1739763794238,0.39950751,2672.0,2671.9,3.74254]
[1739763801050,0.39950751,2672.0,2671.9,4.56804]
[1739763801556,0.816,2672.3,2672.1,3.7423]
[1739763801865,1.5643581,2672.3,2671.9,4.56804]
[1739763802153,1.5643581,2672.3,2672.1,7.48466]
[1739763802357,1.5643581,2672.3,2672.1,3.7423]
[1739763802558,1.5643581,2672.3,2672.2,3.74223]
[1739763802763,1.5643581,2672.3,2671.9,0.8255]
[1739763802764,5.34,2672.5,2672.4,3.74195]
[1739763802969,5.606,2672.5,2672.4,3.74195]
[1739763803256,6.156,2672.5,2672.2,3.74215]
[1739763803438,0.8227,2672.4,2672.2,3.74215]
[1739763803629,0.55,2672.3,2672.1,3.74231]
[1739763803823,0.8227,2672.4,2672.2,3.74223]
[1739763804057,0.266,2672.5,2672.2,3.7421]
[1739763804240,0.816,2672.5,2672.2,3.7421]
[1739763805995,0.816,2672.5,2671.9,0.8255]
[1739763806176,0.816,2672.5,2671.9,1.26896183]
[1739763806379,0.816,2672.5,2672.0,3.74251]
[1739763806563,0.816,2672.5,2672.1,3.74231]
[1739763806760,0.55,2672.4,2672.1,3.74231]
[1739763807162,0.55,2672.4,2672.0,3.74251]
[1739763807374,0.55,2672.4,2672.0,3.74244]
[1739763807569,0.55,2672.2,2671.9,3.74264]
[1739763807791,0.55,2672.2,2671.8,3.7427]
[1739763808005,4.29226,2672.2,2671.8,3.7427]
[1739763808207,0.3995662,2672.1,2671.8,3.7427]
[1739763809499,0.55,2672.0,2671.7,3.74284]
[1739763809852,0.39955887,2671.9,2671.7,3.74284]
[1739763810597,0.39955887,2671.9,2671.8,3.74279]
[1739763812473,0.39955887,2671.9,2671.8,4.54531469]
[1739763812626,0.267,2672.0,2671.9,3.74265]
[1739763817434,5.34,2672.2,2672.1,3.74237]
[1739763821266,0.267,2672.4,2672.1,3.74237]
[1739763821463,0.267,2672.4,2672.2,3.74222]
[1739763823265,0.39960287,2672.3,2672.2,3.74222]
[1739763823965,0.39960287,2672.3,2671.9,3.74265]
[1739763824180,0.39960287,2672.3,2672.0,3.74244]
[1739763825290,0.91773616,2672.3,2671.9,3.74265]
[1739763825581,0.55,2672.1,2671.8,3.74269]
[1739763825778,0.55,2672.1,2671.6,3.74297]
[1739763825932,0.55,2671.9,2671.7,3.74292]
[1739763826334,0.39972023,2671.8,2671.7,3.74292]
[1739763827285,1.17912023,2671.8,2671.5,3.74312]
[1739763827539,1.17912023,2671.8,2671.6,3.74306]
[1739763827686,1.72912023,2671.8,2671.7,3.74293]
[1739763827887,1.72912023,2671.8,2671.6,3.74306]
[1739763828823,0.94972023,2671.8,2671.6,3.74306]
[1739763829427,0.94972023,2671.8,2671.4,4.49726]
[1739763829621,0.94972023,2671.8,2671.5,3.7432]
[1739763829783,0.94972023,2671.8,2671.4,3.74326]
[1739763831534,5.07233,2671.7,2671.2,4.49754]
[1739763831739,0.266,2671.6,2671.2,3.74354]
[1739763832069,0.39972023,2671.5,2671.2,3.74354]
[1739763832218,0.39972023,2671.5,2671.4,3.74335]
[1739763832418,0.39972023,2671.5,2671.3,3.74342]
[1739763832872,0.39972023,2671.5,2671.2,3.74353]
[1739763833571,0.39972023,2671.5,2671.3,3.74343]
[1739763835060,0.39972023,2671.5,2671.3,7.48683]
[1739763835254,0.39972023,2671.5,2671.3,3.7434]
[1739763840461,0.94972023,2671.5,2671.4,3.74335]
[1739763840757,0.94972023,2671.5,2671.3,3.74347]
[1739763841146,0.94972023,2671.5,2671.3,7.48686]
[1739763841460,0.94972023,2671.5,2671.4,3.74335]
[1739763841630,0.94972023,2671.5,2671.3,3.74339]
[1739763842238,0.94972023,2671.5,2671.4,3.74335]
[1739763843688,0.94972023,2671.5,2671.3,3.74347]
[1739763844575,0.94972023,2671.5,2671.4,3.74335]
[1739763846968,0.39972023,2671.5,2671.4,3.74335]
[1739763848897,0.66572023,2671.5,2671.4,3.74335]
[1739763851157,0.39972023,2671.5,2671.4,3.74335]
[1739763863415,0.266,2671.6,2671.5,3.74321]
[1739763864112,0.266,2671.6,2671.5,4.56023951]
[1739763864474,0.55,2671.9,2671.5,4.56023951]
[1739763864675,5.34,2672.0,2671.8,3.74272]
[1739763864899,0.266,2672.1,2671.9,3.74258]
[1739763867903,0.266,2672.1,2671.9,3.74255]
[1739763868279,0.39891338,2672.0,2671.9,3.74255]
[1739763873023,0.266,2672.2,2671.9,3.74255]
[1739763873323,0.816,2672.2,2672.1,3.74237]
[1739763875623,0.816,2672.2,2672.0,3.74249]
[1739763876212,0.816,2672.2,2672.0,3.74243]
[1739763877701,0.816,2672.2,2671.9,3.74254]
[1739763883197,0.39916281,2672.1,2671.9,3.74254]
[1739763885445,0.39916281,2672.1,2671.8,4.52235]
[1739763889534,0.39916281,2672.1,2671.6,3.74299]
[1739763889535,1.3332,2672.0,2671.6,3.743]
[1739763889845,0.39925083,2671.9,2671.6,3.743]
[1739763890046,0.55,2671.8,2671.6,3.743]
[1739763890352,0.55,2671.6,2671.3,4.54534]
[1739763890850,0.39922149,2671.5,2671.4,3.74328]
[1739763898443,0.39922149,2671.5,2671.4,4.50838]
[1739763900873,0.39922149,2671.5,2671.4,5.50860408]
[1739763901059,5.34,2671.8,2671.7,3.74293]
[1739763902373,5.34,2671.8,2671.7,4.50803]
[1739763903442,5.34,2671.8,2671.7,3.74293]
[1739763904440,0.266,2672.0,2671.7,3.74293]
[1739763904645,0.266,2672.0,2671.8,3.74272]
[1739763906465,0.7717,2671.8,2671.4,3.74324]
[1739763906671,0.7717,2671.8,2671.6,3.74307]
[1739763906962,0.55,2671.7,2671.4,3.74327]
[1739763907396,0.7717,2671.6,2671.2,3.74356]
[1739763907607,0.55,2671.5,2671.1,3.74375]
[1739763907801,0.55,2671.5,2671.2,3.74362]
[1739763908408,0.55,2671.5,2671.3,3.74348]
[1739763908979,0.55,2671.5,2671.4,3.74335]
[1739763909191,0.55,2671.5,2671.3,3.74339]
[1739763909497,0.55,2671.5,2671.1,3.74374]
[1739763909800,0.55,2671.5,2671.2,3.74361]
[1739763910299,0.55,2671.5,2671.1,7.48743]
[1739763910463,0.55,2671.5,2671.2,3.74362]
[1739763910797,0.55,2671.5,2671.1,3.74369]
[1739763911000,0.55,2671.5,2671.2,3.74362]
[1739763911163,0.7717,2671.6,2671.2,3.74362]
[1739763911370,0.825777,2671.5,2671.1,3.74366]
[1739763911724,0.7717,2671.6,2671.2,3.7436]
[1739763912307,0.7717,2671.6,2671.1,3.74366]
[1739763912495,4.51478,2671.6,2671.1,3.74366]
[1739763912866,3.74324,2671.5,2671.1,3.74366]
[1739763913280,0.39892068,2671.4,2671.1,3.74366]
[1739763914018,4.5075,2671.3,2670.8,3.74411]
[1739763914176,0.266,2671.2,2670.8,3.74411]
[1739763914706,0.39880327,2671.1,2670.8,3.74411]
[1739763915507,0.39880327,2671.1,2670.9,3.74401]
[1739763915712,0.39880327,2671.1,2671.0,3.74391]
[1739763917910,0.39880327,2671.1,2671.0,5.309702]
[1739763918115,0.266,2671.2,2671.1,3.74377]
[1739763918328,0.39823829,2671.1,2671.0,7.06009283]
[1739763918483,5.34,2671.5,2671.3,3.7434]
[1739763918679,5.34,2671.5,2671.4,3.74335]
[1739763918883,5.34,2671.5,2671.4,4.56035]
[1739763919310,0.266,2671.6,2671.4,4.56035]
[1739763919514,0.266,2671.6,2671.4,3.74335]
[1739763921744,0.266,2671.6,2671.3,3.7434]
[1739763922049,0.74328,2671.6,2671.2,3.74355]
[1739763922251,0.74328,2671.6,2671.2,3.74362]
[1739763922399,0.764,2671.5,2671.2,3.74362]
[1739763922917,0.764,2671.5,2671.0,3.74382]
[1739763923098,0.764,2671.5,2671.0,3.74379]
[1739763923395,0.764,2671.5,2671.1,3.74376]
[1739763923928,0.764,2671.5,2671.2,3.74354]
[1739763924315,1.241293,2671.5,2671.2,3.74354]
[1739763924831,1.241293,2671.5,2671.0,3.74391]
[1739763925198,10.324523,2671.5,2670.9,3.74395]
[1739763925412,0.764,2671.3,2670.5,0.817]
[1739763925614,0.764,2671.3,2670.9,3.74404]
[1739763925806,0.764,2671.3,2670.9,3.74398]
[1739763928138,0.39824563,2671.2,2670.9,3.74398]
[1739763928341,0.764,2671.3,2670.9,3.74398]
[1739763928633,0.39809885,2671.1,2670.8,3.74411]
[1739763928807,4.53694,2671.2,2670.7,3.74433]
[1739763929013,0.39809885,2671.0,2670.7,3.74425]
[1739763929214,5.34,2671.0,2670.6,3.74446]
[1739763929418,0.7933,2670.8,2670.6,3.74446]
[1739763929747,0.66389334,2670.7,2670.6,3.74446]
[1739763930240,0.66389334,2670.7,2670.4,3.74475]
[1739763930426,6.00389334,2670.7,2670.3,3.74489]
[1739763930626,6.68361267,2670.7,2670.5,3.74449]
[1739763931219,6.68361267,2670.7,2670.1,3.74517]
[1739763931438,0.7933,2670.6,2670.3,3.74488]
[1739763931837,0.39758499,2670.5,2670.3,3.74488]
[1739763932044,0.39758499,2670.5,2670.4,3.74475]
[1739763933123,0.39758499,2670.5,2670.2,3.74492]
[1739763933813,0.39758499,2670.5,2670.3,3.74481]
[1739763936447,0.39758499,2670.5,2670.4,3.74475]
[1739763941158,5.34,2671.2,2671.1,4.50867]
[1739763941318,1.092,2671.9,2671.4,3.74324]
[1739763941518,0.483451,2671.8,2671.4,3.74324]
[1739763941716,1.092,2671.9,2671.4,3.74324]
[1739763942458,1.092,2671.9,2671.4,7.48649]
[1739763942778,1.092,2671.9,2671.5,3.7432]
[1739763942934,1.092,2671.9,2671.4,3.74324]
[1739763943253,1.092,2671.9,2671.5,3.7432]
[1739763943429,0.76567499,2671.8,2671.5,3.7432]
[1739763943937,0.76567499,2671.8,2671.6,3.74304]
[1739763944555,0.267,2671.7,2671.6,3.74304]
[1739763944970,0.62347499,2671.7,2671.6,3.74304]
[1739763945132,0.62347499,2671.7,2671.4,3.74324]
[1739763948470,1.18350749,2671.7,2671.4,3.74324]
[1739763949173,0.62347499,2671.7,2671.5,3.7431]
[1739763949575,0.62347499,2671.7,2671.6,3.74307]
[1739763950072,0.62347499,2671.7,2671.5,7.48623]
[1739763950375,0.62347499,2671.7,2671.6,3.74307]
[1739763953148,0.35647499,2671.7,2671.6,4.57087]
[1739763953487,0.7582,2672.2,2672.1,3.74237]
[1739763953686,0.267,2672.2,2672.1,3.74237]
[1739763954885,0.267,2672.2,2672.0,3.74244]
[1739763955168,0.267,2672.2,2672.0,7.48487]
[1739763955350,0.267,2672.2,2672.0,3.74243]
[1739763955560,0.267,2672.2,2672.1,3.74237]
[1739763956139,0.267,2672.2,2672.0,3.74243]
[1739763957166,0.267,2672.2,2672.1,3.74237]
[1739763958140,0.62447303,2672.2,2672.1,3.74237]
[1739763960589,0.35747303,2672.2,2672.1,3.74237]
[1739763960749,0.267,2672.2,2672.1,3.74237]
[1739763960951,0.62447303,2672.2,2672.1,3.74237]
[1739763962749,0.62447303,2672.2,2672.1,4.568447]
[1739763963953,0.35747303,2672.2,2672.1,4.568447]
[1739763964291,5.34,2672.5,2672.2,3.74223]
[1739763964474,5.34,2672.5,2672.4,3.74195]
[1739763964674,5.607,2672.5,2672.4,3.74195]
[1739763965888,5.34,2672.5,2672.4,3.74195]
[1739763966057,5.607,2672.5,2672.4,3.74195]
[1739763967094,5.34,2672.5,2672.4,4.51785]
[1739763967394,5.34,2672.5,2672.4,5.343842]
[1739763969161,8.414,2673.0,2672.9,3.74125]
[1739763969394,0.267,2673.0,2672.9,3.74125]
[1739763969896,0.267,2673.0,2672.4,5.343782]
[1739763970096,0.267,2673.0,2672.8,3.74131]
[1739763970300,0.267,2673.0,2672.8,3.74133]
[1739763970865,0.267,2673.0,2672.8,7.48265]
[1739763971089,0.267,2673.0,2672.8,3.74132]
[1739763973178,0.35889219,2672.9,2672.8,3.74132]
[1739763976217,0.35889219,2672.9,2672.8,4.48961]
[1739763980290,0.35889219,2672.9,2672.8,5.32251]
[1739763981623,0.35889219,2672.9,2672.8,4.48961]
[1739763981928,0.35889219,2672.9,2672.8,3.74132]
[1739763987591,0.35889219,2672.9,2672.8,4.51642]
[1739763987787,0.827,2673.4,2673.3,3.74069]
[1739763987992,5.34,2673.5,2673.4,3.74055]
[1739763988214,5.606,2673.5,2673.4,3.74055]
[1739763988427,0.266,2673.5,2673.4,3.74055]
[1739763992541,0.266,2673.6,2673.5,3.74041]
[1739763997316,5.34,2673.8,2673.7,3.74013]
[1739763997518,5.606,2673.8,2673.7,3.74013]
[1739763997720,5.34,2673.8,2673.7,3.74013]
[1739763997920,5.606,2673.8,2673.7,3.74013]
[1739764000442,5.606,2673.8,2673.6,3.74024]
[1739764001224,5.606,2673.8,2673.6,7.48042]
[1739764001444,5.606,2673.8,2673.6,3.74018]
[1739764003211,0.36046506,2673.7,2673.6,3.74018]
[1739764003411,5.606,2673.8,2673.6,3.74018]
[1739764003706,0.36046506,2673.7,2673.6,3.74018]
[1739764003941,5.606,2673.8,2673.6,3.74018]
[1739764004124,0.36046506,2673.7,2673.6,3.74018]
[1739764004329,5.606,2673.8,2673.6,3.74018]
[1739764004520,0.36046506,2673.7,2673.5,3.7404]
[1739764004846,5.34,2673.8,2673.7,3.74013]
[1739764005226,5.606,2673.8,2673.7,3.74013]
[1739764005425,5.34,2673.8,2673.7,3.74013]
[1739764005745,5.606,2673.8,2673.7,3.74013]
[1739764007323,0.266,2673.8,2673.7,3.74013]
[1739764007509,0.266,2673.8,2673.7,4.60554004]
[1739764010447,5.34,2674.3,2674.2,3.73943]
[1739764010652,5.34,2674.4,2674.3,3.73929]
[1739764010822,5.606,2674.4,2674.3,3.73929]
[1739764011526,5.34,2674.4,2674.3,3.73929]
[1739764011726,5.34,2674.4,2674.3,4.562612]
[1739764013330,5.34,2674.4,2674.3,5.352312]
[1739764013542,8.671,2674.6,2674.5,3.73901]
[1739764013717,8.405,2674.6,2674.5,3.73901]
[1739764015325,8.405,2674.6,2674.5,4.52871]
[1739764015527,8.405,2674.6,2674.5,5.4378272]
[1739764018119,8.7665793,2674.6,2674.5,5.4378272]
[1739764018347,0.3615793,2674.6,2674.5,5.4378272]
[1739764018548,0.266,2674.9,2674.5,1.6988172]
[1739764018730,0.3615793,2674.8,2674.7,3.73863]
[1739764023241,0.3615793,2674.8,2674.7,4.57003]
[1739764023446,0.266,2675.1,2675.0,3.73831]
[1739764026271,0.266,2675.1,2675.0,4.56971]
[1739764029374,6.1732,2675.6,2675.1,3.73806]
[1739764029671,0.266,2675.5,2675.2,7.932866]
[1739764030072,0.266,2675.5,2675.3,3.73779]
[1739764031272,6.4392,2675.6,2675.2,0.456946]
[1739764031559,10.1767,2675.6,2675.2,0.456946]
[1739764032467,13.91426,2675.6,2675.2,0.456946]
[1739764033073,6.4392,2675.6,2675.0,0.8314]
[1739764033271,6.4392,2675.6,2674.7,3.73865]
[1739764033272,4.56962,2675.2,2674.7,3.73865]
[1739764033472,2.36278885,2675.5,2674.4,5.33]
[1739764033473,3.73874,2674.7,2674.4,5.33]
[1739764033660,0.8315,2674.6,2674.5,0.6153322]
[1739764033862,1.19466485,2674.6,2674.5,0.6153322]
[1739764034779,0.36316485,2674.6,2674.5,0.6153322]
[1739764035157,0.36316485,2674.6,2674.5,4.3543422]
[1739764035353,0.36316485,2674.6,2674.5,5.1784422]
[1739764036272,0.36316485,2674.6,2674.5,1.4394322]
[1739764036472,0.36316485,2674.6,2674.5,0.6153322]
[1739764037381,0.36316485,2674.6,2674.5,4.3543422]
[1739764037769,0.36316485,2674.6,2674.5,0.6153322]
[1739764038175,0.36316485,2674.6,2674.5,4.3543422]
[1739764038372,0.36316485,2674.6,2674.5,0.6153322]
[1739764038793,0.36316485,2674.6,2674.5,4.3543422]
[1739764039075,0.266,2674.8,2674.6,3.73875]
[1739764039280,0.266,2674.8,2674.6,4.54805922]
[1739764039485,0.36278146,2674.7,2674.6,4.54805922]
[1739764039689,0.36278146,2674.7,2674.6,4.58544383]
[1739764039887,0.266,2674.9,2674.7,3.73859]
[1739764040109,0.266,2674.9,2674.8,3.73859]
[1739764040308,0.266,2674.9,2674.8,4.64964892]
[1739764040808,0.266,2675.1,2675.0,3.73828]
[1739764041720,0.266,2675.1,2675.0,3.73831]
[1739764042294,0.266,2675.1,2675.0,4.56241]
[1739764043096,0.266,2675.1,2675.0,0.8241]
[1739764043307,0.266,2675.1,2675.0,5.10976889]